fUSD/lending_fUSD_20240406
["ID","MTS","AMOUNT","RATE_DAILY","PERIOD"]
[321687841,1712385754365,-719.65,0.00023599,2]
[321687842,1712385754390,-431.02226403,0.00023599,2]
[321687843,1712385754415,-500.0,0.00023599,2]
[321687844,1712385754442,-500.0,0.00023599,2]
[321687845,1712385754467,-500.0,0.00023599,2]
[321687846,1712385754494,-500.0,0.00023599,2]
[321687847,1712385754518,-500.0,0.00023599,2]
[321687848,1712385754544,-1189.16,0.00023599,2]
[321687849,1712385754568,-1189.16,0.00023599,2]
[321687850,1712385754593,-1189.16,0.00023599,2]
[321687851,1712385754617,-1189.16,0.00023599,2]
[321687852,1712385754640,-500.0,0.00023599,2]
[321687853,1712385754663,-3248.31,0.00023599,2]
[321687854,1712385754686,-500.0,0.00023599,2]
[321687855,1712385754709,-3248.31,0.00023599,2]
[321687856,1712385754732,-536.87,0.00023599,2]
[321687857,1712385754755,-536.87,0.00023599,2]
[321687858,1712385754778,-569.99,0.00023599,2]
[321687859,1712385754802,-569.99,0.00023599,2]
[321687860,1712385754828,-500.0,0.00023599,2]
[321687861,1712385754852,-500.0,0.00023599,2]
[321687862,1712385754876,-500.0,0.00023599,2]
[321687863,1712385754900,-500.0,0.00023599,2]
[321687864,1712385754923,-500.0,0.00023599,2]
[321687865,1712385754945,-500.0,0.00023599,2]
[321687866,1712385754967,-500.0,0.00023599,2]
[321687867,1712385754990,-500.0,0.00023599,2]
[321687868,1712385755014,-391.1174631,0.00023599,2]
[321687869,1712385755042,-500.0,0.00023599,2]
[321687870,1712385755068,-500.0,0.00023599,2]
[321687871,1712385755093,-500.0,0.00023599,2]
[321687872,1712385755117,-509.7,0.00023599,2]
[321687873,1712385755140,-509.7,0.00023599,2]
[321687874,1712385755164,-500.0,0.00023599,2]
[321687875,1712385755187,-500.0,0.00023599,2]
[321687876,1712385755210,-500.0,0.00023599,2]
[321687877,1712385755234,-1032.28,0.00023599,2]
[321687878,1712385755256,-500.0,0.00023599,2]
[321687879,1712385755280,-1032.28,0.00023599,2]
[321687880,1712385755305,-1032.28,0.00023599,2]
[321687881,1712385756318,-1032.28,0.00023599,2]
[321687882,1712385756878,-500.0,0.00023599,2]
[321687883,1712385756906,-500.0,0.00023599,2]
[321687884,1712385756929,-1546.35,0.00023599,2]
[321687885,1712385756953,-1546.35,0.00023599,2]
[321687886,1712385756978,-500.0,0.00023599,2]
[321687887,1712385757001,-1265.7,0.00023599,2]
[321687888,1712385757023,-500.0,0.00023599,2]
[321687889,1712385757046,-500.0,0.00023599,2]
[321687890,1712385757069,-1265.7,0.00023599,2]
[321687891,1712385757092,-500.0,0.00023599,2]
[321687892,1712385757115,-1265.7,0.00023599,2]
[321687893,1712385757137,-1265.7,0.00023599,2]
[321687894,1712385757160,-1009.83,0.00023599,2]
[321687895,1712385757184,-1009.83,0.00023599,2]
[321687896,1712385757212,-500.0,0.00023599,2]
[321687897,1712385757234,-500.0,0.00023599,2]
[321687898,1712385757259,-500.0,0.00023599,2]
[321687899,1712385757282,-500.0,0.00023599,2]
[321687900,1712385757307,-614.44,0.00023599,2]
[321687901,1712385757330,-500.0,0.00023599,2]
[321687902,1712385757353,-500.0,0.00023599,2]
[321687903,1712385757376,-614.44,0.00023599,2]
[321687904,1712385757399,-637.79,0.00023599,2]
[321687905,1712385757424,-637.79,0.00023599,2]
[321687906,1712385757448,-2513.96,0.00023599,2]
[321687907,1712385757474,-2513.96,0.00023599,2]
[321687908,1712385757502,-500.0,0.00023599,2]
[321687909,1712385757527,-500.0,0.00023599,2]
[321687910,1712385757552,-645.35,0.00023599,2]
[321687911,1712385757576,-645.35,0.00023599,2]
[321687912,1712385757599,-645.35,0.00023599,2]
[321687913,1712385757623,-645.35,0.00023599,2]
[321687914,1712385757646,-1719.75,0.00023599,2]
[321687915,1712385757669,-1719.75,0.00023599,2]
[321687916,1712385757691,-753.66,0.00023599,2]
[321687917,1712385757714,-753.66,0.00023599,2]
[321687918,1712385757736,-736.52,0.00023599,2]
[321687919,1712385757758,-736.52,0.00023599,2]
[321687920,1712385757780,-1222.22,0.00023599,2]
[321687921,1712385757802,-1222.22,0.00023599,2]
[321687922,1712385757825,-510.85,0.00023599,2]
[321687923,1712385757849,-510.85,0.00023599,2]
[321687924,1712385757874,-521.74,0.00023599,2]
[321687925,1712385757896,-798.29,0.00023599,2]
[321687926,1712385757918,-798.29,0.00023599,2]
[321687927,1712385757940,-649.14,0.00023599,2]
[321687928,1712385757962,-798.29,0.00023599,2]
[321687929,1712385757985,-649.14,0.00023599,2]
[321687930,1712385758009,-798.29,0.00023599,2]
[321687931,1712385758031,-2128.57,0.00023599,2]
[321687932,1712385758054,-2128.57,0.00023599,2]
[321687933,1712385758075,-500.0,0.00023599,2]
[321687934,1712385758098,-500.0,0.00023599,2]
[321687935,1712385758120,-467.97788676,0.00023599,2]
[321687936,1712385758142,-505.19,0.00023599,2]
[321687937,1712385758165,-505.19,0.00023599,2]
[321687938,1712385758187,-500.0,0.00023599,2]
[321687939,1712385758209,-500.0,0.00023599,2]
[321687940,1712385758231,-500.0,0.00023599,2]
[321687941,1712385758253,-500.0,0.00023599,2]
[321687942,1712385758276,-500.0,0.00023599,2]
[321687943,1712385758298,-500.0,0.00023599,2]
[321687944,1712385758320,-515.15,0.00023599,2]
[321687945,1712385758342,-500.0,0.00023599,2]
[321687946,1712385758365,-515.15,0.00023599,2]
[321687947,1712385758388,-500.0,0.00023599,2]
[321687948,1712385758410,-515.15,0.00023599,2]
[321687949,1712385758433,-515.15,0.00023599,2]
[321687950,1712385758458,-1528.37,0.00023599,2]
[321687951,1712385758481,-1528.37,0.00023599,2]
[321687952,1712385758503,-410861.80881992,0.000236,2]
[321687953,1712385758525,-150.0,0.000236,2]
[321687954,1712385758547,-519.8,0.000236,2]
[321687955,1712385758570,-417.37,0.000236,2]
[321687956,1712385758593,-150.0,0.000236,2]
[321687957,1712385758615,-1104.8,0.000236,2]
[321687958,1712385758637,-348.87,0.000236,2]
[321687959,1712385758660,-162.07,0.000236,2]
[321687960,1712385758684,-150.0,0.000236,2]
[321687961,1712385758707,-150.0,0.000236,2]
[321687962,1712385758730,-348.87,0.000236,2]
[321687963,1712385758751,-417.37,0.000236,2]
[321687964,1712385758773,-150.0,0.000236,2]
[321687965,1712385758794,-150.0,0.000236,2]
[321687966,1712385758818,-150.0,0.000236,2]
[321687967,1712385758840,-519.8,0.000236,2]
[321687968,1712385758863,-162.07,0.000236,2]
[321687969,1712385758885,-150.0,0.000236,2]
[321687970,1712385758907,-162.07,0.000236,2]
[321687971,1712385758929,-348.87,0.000236,2]
[321687972,1712385758950,-417.37,0.000236,2]
[321687973,1712385758973,-396.55,0.000236,2]
[321687974,1712385758994,-610.63,0.000236,2]
[321687975,1712385759017,-237.54,0.000236,2]
[321687976,1712385759206,-154.19,0.000236,2]
[321687977,1712385759230,-348.87,0.000236,2]
[321687978,1712385759254,-348.87,0.000236,2]
[321687979,1712385759277,-246.36,0.000236,2]
[321687980,1712385759299,-167.79,0.000236,2]
[321687981,1712385759325,-150.0,0.000236,2]
[321687982,1712385759348,-348.87,0.000236,2]
[321687983,1712385759371,-1414.06478,0.000236,2]
[321687984,1712385759393,-500.0,0.00023603,2]
[321687985,1712385759415,-500.0,0.00023603,2]
[321687986,1712385759439,-500.0,0.00023603,2]
[321687987,1712385759462,-500.0,0.00023603,2]
[321687988,1712385759486,-736.52,0.00023603,2]
[321687989,1712385759510,-736.52,0.00023603,2]
[321687990,1712385759534,-510.85,0.00023603,2]
[321687991,1712385759556,-510.85,0.00023603,2]
[321687992,1712385759579,-2128.57,0.00023603,2]
[321687993,1712385759601,-2128.57,0.00023603,2]
[321687994,1712385759623,-500.0,0.00023603,2]
[321687995,1712385759646,-500.0,0.00023603,2]
[321687996,1712385759668,-2204.38,0.00023604,2]
[321687997,1712385759690,-500.0,0.00023604,2]
[321687998,1712385759711,-545.4,0.00023604,2]
[321687999,1712385759735,-556.03,0.00023604,2]
[321688000,1712385759760,-500.0,0.00023604,2]
[321688001,1712385759782,-35936.0142342,0.00023604,2]
[321688002,1712385759805,-500.0,0.00023604,2]
[321688003,1712385759827,-13595.4550276,0.00023604,2]
[321688004,1712385759849,-500.0,0.00023604,2]
[321688005,1712385759872,-500.0,0.00023604,2]
[321688006,1712385759895,-794.26,0.00023604,2]
[321688007,1712385759918,-2320.98,0.00023604,2]
[321688008,1712385759941,-500.0,0.00023604,2]
[321688009,1712385759965,-500.0,0.00023604,2]
[321688010,1712385759988,-500.0,0.00023604,2]
[321688011,1712385760010,-593.08,0.00023604,2]
[321688012,1712385760033,-535.35,0.00023604,2]
[321688013,1712385760056,-1626.97,0.00023604,2]
[321688014,1712385760080,-500.0,0.00023604,2]
[321688015,1712385760102,-500.0,0.00023604,2]
[321688016,1712385760124,-602.03,0.00023604,2]
[321688017,1712385760147,-757.68,0.00023604,2]
[321688018,1712385760170,-523.65,0.00023604,2]
[321688019,1712385760192,-403131.3659498,0.00023604,2]
[321688020,1712385760215,-500.0,0.00023604,2]
[321688021,1712385760238,-500.0,0.00023604,2]
[321688022,1712385760261,-500.0,0.00023604,2]
[321688023,1712385760285,-2240.85,0.00023604,2]
[321688024,1712385760308,-510.93,0.00023604,2]
[321688025,1712385760330,-639.32,0.00023604,2]
[321688026,1712385760352,-500.0,0.00023604,2]
[321688027,1712385760376,-2502.72,0.00023604,2]
[321688028,1712385760399,-500.0,0.00023604,2]
[321688029,1712385760422,-6998.16,0.00023604,2]
[321688030,1712385760447,-564.01974798,0.00023604,2]
[321688031,1712385760471,-988.18,0.00023604,2]
[321688032,1712385760495,-762.49,0.00023604,2]
[321688033,1712385760518,-557.86,0.00023604,2]
[321688034,1712385760540,-753.93,0.00023604,2]
[321688035,1712385760563,-500.0,0.00023604,2]
[321688036,1712385760585,-674.05,0.00023604,2]
[321688037,1712385760608,-259.97,0.00023604,2]
[321688038,1712385760631,-697.6,0.00023604,2]
[321688039,1712385760654,-636.89,0.00023604,2]
[321688040,1712385760676,-500.0,0.00023604,2]
[321688041,1712385760699,-603.73,0.00023604,2]
[321688042,1712385760722,-500.0,0.00023604,2]
[321688043,1712385760745,-6044.73,0.00023604,2]
[321688044,1712385760767,-500.0,0.00023604,2]
[321688045,1712385760791,-1515.87,0.00023604,2]
[321688046,1712385760817,-719.65,0.00023604,2]
[321688047,1712385760839,-500.0,0.00023604,2]
[321688048,1712385760863,-500.0,0.00023604,2]
[321688049,1712385760886,-1189.16,0.00023604,2]
[321688050,1712385760909,-500.0,0.00023604,2]
[321688051,1712385760931,-3248.31,0.00023604,2]
[321688052,1712385760955,-536.87,0.00023604,2]
[321688053,1712385760978,-569.99,0.00023604,2]
[321688054,1712385761002,-500.0,0.00023604,2]
[321688055,1712385761024,-500.0,0.00023604,2]
[321688056,1712385761047,-500.0,0.00023604,2]
[321688057,1712385761072,-509.7,0.00023604,2]
[321688058,1712385761095,-500.0,0.00023604,2]
[321688059,1712385761117,-500.0,0.00023604,2]
[321688060,1712385761140,-1032.28,0.00023604,2]
[321688061,1712385761163,-500.0,0.00023604,2]
[321688062,1712385761186,-1546.35,0.00023604,2]
[321688063,1712385761209,-500.0,0.00023604,2]
[321688064,1712385761232,-500.0,0.00023604,2]
[321688065,1712385761255,-1265.7,0.00023604,2]
[321688066,1712385761278,-1009.83,0.00023604,2]
[321688067,1712385761300,-500.0,0.00023604,2]
[321688068,1712385761323,-500.0,0.00023604,2]
[321688069,1712385761346,-614.44,0.00023604,2]
[321688070,1712385761369,-637.79,0.00023604,2]
[321688071,1712385761393,-2513.96,0.00023604,2]
[321688072,1712385761417,-645.35,0.00023604,2]
[321688073,1712385761441,-1719.75,0.00023604,2]
[321688074,1712385761465,-753.66,0.00023604,2]
[321688075,1712385761488,-1222.22,0.00023604,2]
[321688076,1712385761511,-798.29,0.00023604,2]
[321688077,1712385761538,-649.14,0.00023604,2]
[321688078,1712385761560,-505.19,0.00023604,2]
[321688079,1712385761583,-500.0,0.00023604,2]
[321688080,1712385761607,-500.0,0.00023604,2]
[321688081,1712385761631,-500.0,0.00023604,2]
[321688082,1712385761654,-515.15,0.00023604,2]
[321688083,1712385761678,-500.0,0.0002362,2]
[321688084,1712385761700,-225.71626727,0.0002362,2]
[321688085,1712385761723,-2320.98,0.0002362,2]
[321688086,1712385761746,-500.0,0.0002362,2]
[321688087,1712385761768,-500.0,0.0002362,2]
[321688088,1712385761791,-1626.97,0.0002362,2]
[321688089,1712385761815,-500.0,0.0002362,2]
[321688090,1712385761837,-500.0,0.0002362,2]
[321688091,1712385761860,-510.93,0.0002362,2]
[321688092,1712385761884,-500.0,0.0002362,2]
[321688093,1712385761908,-500.0,0.0002362,2]
[321688094,1712385761931,-762.49,0.0002362,2]
[321688095,1712385761954,-557.86,0.0002362,2]
[321688096,1712385761978,-674.05,0.0002362,2]
[321688097,1712385762002,-697.6,0.0002362,2]
[321688098,1712385762026,-603.73,0.0002362,2]
[321688099,1712385762050,-500.0,0.0002362,2]
[321688100,1712385762074,-500.0,0.0002362,2]
[321688101,1712385762097,-500.0,0.0002362,2]
[321688102,1712385762120,-3248.31,0.0002362,2]
[321688103,1712385762143,-536.87,0.0002362,2]
[321688104,1712385762167,-509.7,0.0002362,2]
[321688105,1712385762190,-1546.35,0.0002362,2]
[321688106,1712385762213,-1009.83,0.0002362,2]
[321688107,1712385762236,-614.44,0.0002362,2]
[321688108,1712385762261,-1719.75,0.0002362,2]
[321688109,1712385762285,-500.0,0.0002362,2]
[321688110,1712385762310,-500.0,0.0002362,2]
[321688111,1712385762333,-520.48,0.00023621,2]
[321688112,1712385762356,-500.0,0.00023621,2]
[321688113,1712385762379,-545.4,0.00023621,2]
[321688114,1712385762402,-500.0,0.00023621,2]
[321688115,1712385762425,-500.0,0.00023621,2]
[321688116,1712385762449,-556.03,0.00023621,2]
[321688117,1712385762471,-500.0,0.00023621,2]
[321688118,1712385762493,-500.0,0.00023621,2]
[321688119,1712385762516,-794.26,0.00023621,2]
[321688120,1712385762539,-593.08,0.00023621,2]
[321688121,1712385762562,-535.35,0.00023621,2]
[321688122,1712385762584,-602.03,0.00023621,2]
[321688123,1712385762608,-757.68,0.00023621,2]
[321688124,1712385762630,-500.0,0.00023621,2]
[321688125,1712385762655,-2240.85,0.00023621,2]
[321688126,1712385762681,-639.32,0.00023621,2]
[321688127,1712385762703,-2502.72,0.00023621,2]
[321688128,1712385762729,-6998.16,0.00023621,2]
[321688129,1712385762754,-753.93,0.00023621,2]
[321688130,1712385762778,-500.0,0.00023621,2]
[321688131,1712385762804,-500.0,0.00023621,2]
[321688132,1712385762828,-1515.87,0.00023621,2]
[321688133,1712385762852,-1189.16,0.00023621,2]
[321688134,1712385762875,-500.0,0.00023621,2]
[321688135,1712385762899,-1032.28,0.00023621,2]
[321688136,1712385762921,-1265.7,0.00023621,2]
[321688137,1712385762944,-645.35,0.00023621,2]
[321688138,1712385762967,-798.29,0.00023621,2]
[321688139,1712385762990,-515.15,0.00023621,2]
[321688140,1712385763012,-205.20297206,0.00023622,2]
[321688141,1712385763035,-500.0,0.00023622,2]
[321688142,1712385763058,-500.0,0.00023622,2]
[321688143,1712385763081,-842.54320359,0.00023626,2]
[321688144,1712385763105,-10321.87948817,0.00023646,2]
[321688145,1712385763128,-500.0,0.00023695,2]
[321688146,1712385763153,-569.99,0.00023695,2]
[321688147,1712385763177,-500.0,0.00023695,2]
[321688148,1712385763202,-500.0,0.00023695,2]
[321688149,1712385763227,-500.0,0.00023695,2]
[321688150,1712385763250,-500.0,0.00023695,2]
[321688151,1712385763273,-500.0,0.00023695,2]
[321688152,1712385763464,-500.0,0.00023695,2]
[321688153,1712385763488,-500.0,0.00023695,2]
[321688154,1712385763509,-500.0,0.00023695,2]
[321688155,1712385763532,-500.0,0.00023695,2]
[321688156,1712385763554,-637.79,0.00023695,2]
[321688157,1712385763575,-2513.96,0.00023695,2]
[321688158,1712385763596,-753.66,0.00023695,2]
[321688159,1712385763618,-1222.22,0.00023695,2]
[321688160,1712385763639,-649.14,0.00023695,2]
[321688161,1712385763661,-505.19,0.00023695,2]
[321688162,1712385763682,-500.0,0.00023695,2]
[321688163,1712385763703,-2204.38,0.00023696,2]
[321688164,1712385763725,-500.0,0.00023696,2]
[321688165,1712385763747,-607.36,0.00023696,2]
[321688166,1712385763768,-500.0,0.00023696,2]
[321688167,1712385763790,-523.65,0.00023696,2]
[321688168,1712385763812,-500.0,0.00023696,2]
[321688169,1712385763834,-988.18,0.00023696,2]
[321688170,1712385763854,-500.0,0.00023696,2]
[321688171,1712385763876,-636.89,0.00023696,2]
[321688172,1712385763897,-6044.73,0.00023696,2]
[321688173,1712385763919,-719.65,0.00023696,2]
[321688174,1712385763941,-430.15828009,0.00023697,2]
[321688175,1712385763962,-500.0,0.00023697,2]
[321688176,1712385763982,-500.0,0.00023698,2]
[321688177,1712385764003,-500.0,0.00023698,2]
[321688178,1712385764024,-417.37,0.000237,2]
[321688179,1712385764045,-162.07,0.000237,2]
[321688180,1712385764066,-150.0,0.000237,2]
[321688181,1712385764087,-150.0,0.000237,2]
[321688182,1712385764109,-519.8,0.000237,2]
[321688183,1712385764130,-150.0,0.000237,2]
[321688184,1712385764152,-348.87,0.000237,2]
[321688185,1712385764174,-905.64,0.000237,2]
[321688186,1712385764195,-519.8,0.000237,2]
[321688187,1712385764217,-417.37,0.000237,2]
[321688188,1712385764239,-905.64,0.000237,2]
[321688189,1712385764260,-150.0,0.000237,2]
[321688190,1712385764281,-150.0,0.000237,2]
[321688191,1712385764302,-150.0,0.000237,2]
[321688192,1712385764324,-162.07,0.000237,2]
[321688193,1712385764345,-150.0,0.000237,2]
[321688194,1712385764367,-348.87,0.000237,2]
[321688195,1712385764389,-1592.18685091,0.00023733,2]
[321688196,1712385764411,-842.54320359,0.00023754,2]
[321688197,1712385764432,-430.15828009,0.00023797,2]
[321688198,1712385764454,-1018.29,0.000238,2]
[321688199,1712385764475,-150.0,0.000238,2]
[321688200,1712385764496,-519.8,0.000238,2]
[321688201,1712385764517,-150.0,0.000238,2]
[321688202,1712385764540,-379.74,0.000238,2]
[321688203,1712385764562,-417.37,0.000238,2]
[321688204,1712385764583,-905.28,0.000238,2]
[321688205,1712385764604,-162.07,0.000238,2]
[321688206,1712385764625,-153.99,0.000238,2]
[321688207,1712385764647,-298.13,0.000238,2]
[321688208,1712385764668,-150.0,0.000238,2]
[321688209,1712385764690,-150.0,0.000238,2]
[321688210,1712385764711,-297.57,0.000238,2]
[321688211,1712385764731,-411.06,0.000238,2]
[321688212,1712385764752,-150.0,0.000238,2]
[321688213,1712385764773,-417.37,0.000238,2]
[321688214,1712385764795,-519.8,0.000238,2]
[321688215,1712385764817,-150.0,0.000238,2]
[321688216,1712385764838,-150.0,0.000238,2]
[321688217,1712385764859,-162.07,0.000238,2]
[321688218,1712385764880,-411.06,0.000238,2]
[321688219,1712385764902,-150.0,0.000238,2]
[321688220,1712385764923,-150.0,0.000238,2]
[321688221,1712385764944,-348.87,0.000238,2]
[321688222,1712385764965,-905.64,0.000238,2]
[321688223,1712385764986,-150.0,0.000238,2]
[321688224,1712385765008,-150.0,0.000238,2]
[321688225,1712385765029,-150.0,0.000238,2]
[321688226,1712385765050,-150.0,0.000238,2]
[321688227,1712385765072,-162.07,0.000238,2]
[321688228,1712385765094,-150.0,0.000238,2]
[321688229,1712385765115,-150.0,0.000238,2]
[321688230,1712385765135,-411.06,0.000238,2]
[321688231,1712385765157,-905.64,0.000238,2]
[321688232,1712385765179,-348.87,0.000238,2]
[321688233,1712385765205,-519.8,0.000238,2]
[321688234,1712385765227,-150.0,0.000238,2]
[321688235,1712385765249,-150.0,0.000238,2]
[321688236,1712385765270,-417.37,0.000238,2]
[321688237,1712385765292,-150.0,0.000238,2]
[321688238,1712385765313,-150.0,0.000238,2]
[321688239,1712385765335,-150.0,0.000238,2]
[321688240,1712385765358,-417.37,0.000238,2]
[321688241,1712385765379,-150.0,0.000238,2]
[321688242,1712385765402,-208.51,0.000238,2]
[321688243,1712385765424,-162.07,0.000238,2]
[321688244,1712385765448,-150.0,0.000238,2]
[321688245,1712385765469,-150.0,0.000238,2]
[321688246,1712385765492,-519.8,0.000238,2]
[321688247,1712385765513,-348.87,0.000238,2]
[321688248,1712385765537,-150.0,0.000238,2]
[321688249,1712385765558,-519.8,0.000238,2]
[321688250,1712385765579,-417.37,0.000238,2]
[321688251,1712385765599,-150.0,0.000238,2]
[321688252,1712385765620,-150.0,0.000238,2]
[321688253,1712385765642,-150.0,0.000238,2]
[321688254,1712385765663,-162.07,0.000238,2]
[321688255,1712385765685,-150.0,0.000238,2]
[321688256,1712385765706,-348.87,0.000238,2]
[321688257,1712385765727,-150.0,0.000238,2]
[321688258,1712385765749,-905.64,0.000238,2]
[321688259,1712385765771,-10321.87948817,0.00023803,2]
[321688260,1712385765794,-214.93177137,0.00023865,2]
[321688261,1712385765817,-842.54320359,0.00023881,2]
[321688262,1712385765838,-430.15828009,0.00023897,2]
[321688263,1712385765860,-500.0,0.00023899,2]
[321688264,1712385765882,-3189.7937894,0.00023899,2]
[321688265,1712385765904,-356.22219646,0.00023899,2]
[321688266,1712385765927,-1592.18685091,0.000239,2]
[321688267,1712385765951,-10321.87948817,0.00023959,2]
[321688268,1712385765973,-639.0,0.00023965,2]
[321688269,1712385765994,-205.27,0.00023979,2]
[321688270,1712385766016,-500.0,0.00023997,2]
[321688271,1712385766037,-500.0,0.00023997,2]
[321688272,1712385766060,-736.52,0.00023997,2]
[321688273,1712385766082,-510.85,0.00023997,2]
[321688274,1712385766105,-2128.57,0.00023997,2]
[321688275,1712385766128,-500.0,0.00023997,2]
[321688276,1712385766151,-430.15828009,0.00023997,2]
[321688277,1712385766173,-500.0,0.00023998,2]
[321688278,1712385766195,-545.4,0.00023998,2]
[321688279,1712385766216,-556.03,0.00023998,2]
[321688280,1712385766238,-500.0,0.00023998,2]
[321688281,1712385766260,-794.26,0.00023998,2]
[321688282,1712385766282,-593.08,0.00023998,2]
[321688283,1712385766306,-535.35,0.00023998,2]
[321688284,1712385766328,-602.03,0.00023998,2]
[321688285,1712385766349,-757.68,0.00023998,2]
[321688286,1712385766372,-500.0,0.00023998,2]
[321688287,1712385766394,-2240.85,0.00023998,2]
[321688288,1712385766417,-639.32,0.00023998,2]
[321688289,1712385766442,-2502.72,0.00023998,2]
[321688290,1712385766467,-6998.16,0.00023998,2]
[321688291,1712385766488,-753.93,0.00023998,2]
[321688292,1712385766515,-500.0,0.00023998,2]
[321688293,1712385766538,-500.0,0.00023998,2]
[321688294,1712385766560,-1515.87,0.00023998,2]
[321688295,1712385766583,-1189.16,0.00023998,2]
[321688296,1712385766605,-247.43,0.00023998,2]
[321688297,1712385766626,-1032.28,0.00023998,2]
[321688298,1712385766648,-1265.7,0.00023998,2]
[321688299,1712385766670,-645.35,0.00023998,2]
[321688300,1712385766692,-798.29,0.00023998,2]
[321688301,1712385766713,-515.15,0.00023998,2]
[321688302,1712385766734,-2204.38,0.00023999,2]
[321688303,1712385766755,-2204.38,0.00023999,2]
[321688304,1712385766778,-2204.38,0.00023999,2]
[321688305,1712385766799,-2204.38,0.00023999,2]
[321688306,1712385766822,-2204.42564656,0.00023999,2]
[321688307,1712385766844,-500.0,0.00023999,2]
[321688308,1712385766866,-500.0,0.00023999,2]
[321688309,1712385766887,-338.27,0.00023999,2]
[321688310,1712385766910,-2320.98,0.00023999,2]
[321688311,1712385766931,-500.0,0.00023999,2]
[321688312,1712385766953,-500.0,0.00023999,2]
[321688313,1712385766975,-1626.97,0.00023999,2]
[321688314,1712385766996,-500.0,0.00023999,2]
[321688315,1712385767019,-500.0,0.00023999,2]
[321688316,1712385767040,-523.65,0.00023999,2]
[321688317,1712385767062,-500.0,0.00023999,2]
[321688318,1712385767083,-500.0,0.00023999,2]
[321688319,1712385767105,-510.93,0.00023999,2]
[321688320,1712385767127,-533.13476126,0.00023999,2]
[321688321,1712385767149,-500.0,0.00023999,2]
[321688322,1712385767170,-988.18,0.00023999,2]
[321688323,1712385767191,-762.49,0.00023999,2]
[321688324,1712385767213,-557.86,0.00023999,2]
[321688325,1712385767234,-415.26,0.00023999,2]
[321688326,1712385767255,-674.05,0.00023999,2]
[321688327,1712385767278,-697.6,0.00023999,2]
[321688328,1712385767496,-636.89,0.00023999,2]
[321688329,1712385767520,-603.73,0.00023999,2]
[321688330,1712385767543,-6044.73,0.00023999,2]
[321688331,1712385767567,-573.95495929,0.00023999,2]
[321688332,1712385767591,-719.65,0.00023999,2]
[321688333,1712385767615,-500.0,0.00023999,2]
[321688334,1712385767638,-500.0,0.00023999,2]
[321688335,1712385767660,-3248.31,0.00023999,2]
[321688336,1712385767684,-536.87,0.00023999,2]
[321688337,1712385767708,-509.7,0.00023999,2]
[321688338,1712385767736,-1546.35,0.00023999,2]
[321688339,1712385767757,-1009.83,0.00023999,2]
[321688340,1712385767779,-614.44,0.00023999,2]